bitfinex/quotes_BTCUSD_20250119
["timestamp","ask_amount","ask_price","bid_price","bid_amount"]
[1737324738853,9.17660036,103000.0,102990.0,0.38579349]
[1737324739054,9.12660036,103000.0,102990.0,0.388376]
[1737324739255,9.12660036,103000.0,102990.0,0.48288949]
[1737324739639,9.12660036,103000.0,102990.0,0.63288949]
[1737324739834,9.12660036,103000.0,102990.0,0.8148888]
[1737324740089,8.69933207,103000.0,102990.0,1.2153118]
[1737324740234,8.36586281,103000.0,102990.0,1.2153118]
[1737324740443,8.02123895,103000.0,102990.0,1.2153118]
[1737324740666,8.02123895,103000.0,102990.0,1.22485941]
[1737324741094,8.02123895,103000.0,102990.0,0.69743641]
[1737324741264,7.89021377,103000.0,102990.0,1.05983741]
[1737324741467,7.87740786,103000.0,102990.0,1.09346981]
[1737324741668,7.52822657,103000.0,102990.0,1.09389751]
[1737324741873,7.52822657,103000.0,102990.0,1.39389751]
[1737324741874,7.21675551,103000.0,102990.0,1.39389751]
[1737324742157,7.06035941,103000.0,102990.0,1.39389751]
[1737324742360,7.01608829,103000.0,102990.0,1.37744852]
[1737324742762,7.01608829,103000.0,102990.0,1.05657086]
[1737324742962,7.01608829,103000.0,102990.0,0.95657086]
[1737324743184,6.91900329,103000.0,102990.0,1.05657086]
[1737324743383,6.91900329,103000.0,102990.0,0.87081612]
[1737324743599,6.91900329,103000.0,102990.0,0.65841512]
[1737324743950,6.91900329,103000.0,102990.0,0.54886751]
[1737324744145,6.91900329,103000.0,102990.0,0.90701051]
[1737324744146,6.91655146,103000.0,102990.0,0.90701051]
[1737324744301,6.87771746,103000.0,102990.0,0.90701051]
[1737324744685,6.81946646,103000.0,102990.0,0.90701051]
[1737324745101,6.73753792,103000.0,102990.0,0.93001051]
[1737324745302,5.95364183,103000.0,102990.0,1.23001051]
[1737324745501,5.30729002,103000.0,102990.0,1.20024692]
[1737324745701,5.26917518,103000.0,102990.0,1.21930133]
[1737324745902,5.26619008,103000.0,102990.0,0.95271307]
[1737324746171,5.26619008,103000.0,102990.0,1.21760045]
[1737324746172,5.15763332,103000.0,102990.0,1.21760045]
[1737324746468,5.1356673,103000.0,102990.0,1.27103541]
[1737324746654,4.92618416,103000.0,102990.0,1.27103541]
[1737324746855,4.41079441,103000.0,102990.0,1.48383871]
[1737324747015,3.84854657,103000.0,102990.0,1.37103383]
[1737324747214,3.15954453,103000.0,102990.0,1.34765866]
[1737324747486,2.89145068,103000.0,102990.0,1.34765866]
[1737324747651,2.27852697,103000.0,102990.0,3.47632966]
[1737324747862,1.26088293,103000.0,102990.0,3.50977392]
[1737324748075,1.05529733,103000.0,102990.0,3.23385348]
[1737324748230,1.05529733,103000.0,102990.0,3.15029348]
[1737324748430,1.05529733,103000.0,102990.0,3.01233248]
[1737324748636,1.05529733,103000.0,102990.0,2.45704748]
[1737324748835,0.7640352,103000.0,102990.0,2.38994177]
[1737324749076,0.6669502,103000.0,102990.0,2.46780759]
[1737324749297,0.6669502,103000.0,102990.0,2.31780759]
[1737324749702,0.66690461,103000.0,102990.0,2.61740472]
[1737324749933,0.66690461,103000.0,102990.0,1.14261353]
[1737324750145,0.62506469,103000.0,102990.0,1.14261353]
[1737324750342,0.62506469,103000.0,102990.0,0.59327453]
[1737324750343,0.56681369,103000.0,102990.0,0.59327453]
[1737324750570,0.56681369,103000.0,102990.0,0.69697353]
[1737324750781,0.56681369,103000.0,102990.0,0.86528664]
[1737324750967,0.56681369,103000.0,102990.0,1.01528664]
[1737324751131,0.46972869,103000.0,102990.0,0.91528664]
[1737324751339,0.46972869,103000.0,102990.0,1.06405972]
[1737324751594,0.46072869,103000.0,102990.0,1.06405972]
[1737324751799,0.0009007,103010.0,103000.0,0.42908631]
[1737324752078,0.12769901,103100.0,103000.0,0.42908631]
[1737324752079,0.06429799,103100.0,103090.0,0.097002]
[1737324752230,0.15881148,103100.0,103090.0,0.388012]
[1737324752430,0.06479946,103100.0,103090.0,0.36654004]
[1737324752855,0.06479946,103100.0,103090.0,0.51654004]
[1737324753254,0.00050147,103100.0,103090.0,0.69305284]
[1737324753654,0.00050147,103100.0,103090.0,0.98068784]
[1737324753874,0.01422345,103110.0,103100.0,0.42899231]
[1737324754074,0.01437378,103110.0,103100.0,1.1140478]
[1737324754281,7.8e-07,103110.0,103100.0,1.1140478]
[1737324754477,7.8e-07,103110.0,103100.0,0.8144858]
[1737324754906,3.7e-07,103130.0,103120.0,0.42897331]
[1737324755105,3.7e-07,103130.0,103120.0,2.08085391]
[1737324755309,0.00089797,103160.0,103120.0,2.08085391]
[1737324755310,0.00089797,103160.0,103150.0,0.17894531]
[1737324755610,0.00104814,103160.0,103150.0,0.5642988]
[1737324755935,0.00104814,103160.0,103150.0,0.76204652]
[1737324755936,0.00208734,103160.0,103150.0,0.76204652]
[1737324756079,0.00208734,103160.0,103150.0,0.85899252]
[1737324756281,3.4e-07,103160.0,103150.0,0.95899252]
[1737324756484,3.4e-07,103160.0,103150.0,0.78987052]
[1737324757183,3.4e-07,103160.0,103150.0,0.68987052]
[1737324757592,3.4e-07,103160.0,103150.0,0.61978531]
[1737324757777,3.4e-07,103160.0,103150.0,0.7142988]
[1737324757988,3.4e-07,103160.0,103150.0,0.63229949]
[1737324758363,3.4e-07,103160.0,103150.0,0.7142988]
[1737324758476,3.4e-07,103160.0,103150.0,0.8142988]
[1737324758676,3.4e-07,103160.0,103150.0,0.82384641]
[1737324758884,6e-08,103180.0,103170.0,0.33199931]
[1737324759224,6e-08,103180.0,103170.0,1.46046091]
[1737324759428,6e-08,103180.0,103170.0,0.98253291]
[1737324759591,6e-08,103180.0,103170.0,0.6094838]
[1737324759792,0.04140006,103180.0,103170.0,0.51497031]
[1737324759993,0.13591355,103180.0,103170.0,0.387707]
[1737324760212,0.13591355,103180.0,103170.0,0.29078]
[1737324760444,0.30891355,103180.0,103170.0,0.36586645]
[1737324760731,0.02227662,103180.0,103170.0,0.36586645]
[1737324760916,0.02227662,103180.0,103170.0,0.46037994]
[1737324761117,0.01836062,103190.0,103180.0,0.096918]
[1737324761331,0.00090028,103190.0,103180.0,0.52150149]
[1737324761557,1.7519557,103190.0,103180.0,0.67150149]
[1737324761934,1.7519557,103190.0,103180.0,0.576988]
[1737324762668,0.80959395,103190.0,103180.0,0.40224686]
[1737324762868,0.83259395,103190.0,103180.0,0.40224686]
[1737324763068,0.92710744,103190.0,103180.0,0.15532886]
[1737324763311,0.92710744,103190.0,103180.0,0.12414686]
[1737324763516,0.15,103180.0,103170.0,0.290763]
[1737324763750,0.15,103180.0,103140.0,0.193911]
[1737324763751,0.023,103160.0,103150.0,0.290836]
[1737324763875,0.023,103160.0,103150.0,0.581656]
[1737324764274,0.023,103160.0,103150.0,0.581616]
[1737324764475,0.11751349,103160.0,103150.0,0.581616]
[1737324764694,0.81243879,103160.0,103150.0,0.28978]
[1737324765149,0.706928,103160.0,103150.0,0.303734]
[1737324765363,0.173,103140.0,103130.0,0.26699757]
[1737324765568,0.173,103120.0,103100.0,0.193971]
[1737324765771,0.26751349,103110.0,103100.0,0.290964]
[1737324765972,0.26751349,103110.0,103100.0,0.574014]
[1737324765973,0.023,103110.0,103100.0,0.574014]
[1737324766153,0.023,103110.0,103100.0,0.60657532]
[1737324766405,0.15,103130.0,103120.0,0.096974]
[1737324766616,0.15,103140.0,103110.0,0.387919]
[1737324766820,0.63941451,103160.0,103150.0,0.096946]
[1737324767023,0.73407805,103160.0,103150.0,0.12907304]
[1737324767199,0.58407805,103160.0,103150.0,0.12907304]
[1737324767397,0.50407805,103160.0,103150.0,0.13514029]
[1737324767653,0.50407805,103160.0,103150.0,0.60355029]
[1737324767654,0.40956456,103160.0,103150.0,0.60355029]
[1737324767855,0.00015005,103160.0,103150.0,0.60355029]
[1737324768154,0.00015005,103160.0,103150.0,0.5216394]
[1737324768314,0.00015005,103160.0,103150.0,1.03131055]
[1737324768520,0.40941451,103170.0,103160.0,0.10678595]
[1737324768729,0.30941451,103170.0,103160.0,0.20129944]
[1737324768933,0.43073049,103170.0,103160.0,0.80791944]
[1737324769369,0.44084203,103170.0,103160.0,0.80791944]
[1737324769585,0.43073049,103170.0,103160.0,0.92524244]
[1737324769789,0.28138376,103180.0,103170.0,0.096927]
[1737324769997,0.28138376,103180.0,103170.0,0.76799849]
[1737324770209,0.28138376,103180.0,103170.0,0.79803049]
[1737324770417,0.28138376,103180.0,103170.0,1.4656936]
[1737324770623,0.26199976,103180.0,103170.0,1.47524121]
[1737324770833,0.00090028,103190.0,103170.0,1.66592753]
[1737324771049,0.00090195,103200.0,103190.0,0.096908]
[1737324771276,0.00090195,103200.0,103190.0,0.9471896]
[1737324771277,0.00105206,103200.0,103190.0,0.9471896]
[1737324771477,0.00074181,103200.0,103190.0,1.4541286]
[1737324771713,0.00074181,103200.0,103190.0,1.28581549]
[1737324771929,8.1e-07,103200.0,103190.0,1.32614321]
[1737324772134,0.31536316,103210.0,103200.0,0.754083]
[1737324772401,0.31586342,103210.0,103200.0,0.74859649]
[1737324772642,0.01660508,103220.0,103210.0,0.196889]
[1737324772821,0.01660508,103220.0,103210.0,2.52693821]
[1737324773022,8e-08,103220.0,103210.0,2.55736507]
[1737324773223,8e-08,103220.0,103210.0,1.37321296]
[1737324773886,0.0008965,103290.0,103280.0,0.096824]
[1737324774074,0.0008965,103290.0,103280.0,0.246824]
[1737324774270,0.00104663,103290.0,103280.0,0.246824]
[1737324774417,0.00104663,103290.0,103280.0,1.237984]
[1737324774818,0.0004277,103300.0,103290.0,0.246814]
[1737324775011,0.09494119,103300.0,103290.0,1.087944]
[1737324775235,0.09494119,103300.0,103290.0,0.99113]
[1737324775439,0.09494119,103300.0,103290.0,1.087944]
[1737324775650,0.0004277,103300.0,103290.0,1.21271435]
[1737324776045,0.09494119,103300.0,103290.0,1.21271435]
[1737324776245,0.09494119,103300.0,103290.0,1.06271435]
[1737324776511,0.0004277,103300.0,103290.0,1.06271435]
[1737324776746,0.0004277,103300.0,103290.0,1.21271435]
[1737324777757,0.0004277,103300.0,103290.0,1.24989093]
[1737324778163,0.24494119,103300.0,103290.0,1.00307693]
[1737324778331,0.09494119,103300.0,103290.0,1.09989093]
[1737324778527,0.11794119,103300.0,103290.0,1.00307693]
[1737324778837,0.11794119,103300.0,103290.0,0.13399058]
[1737324779048,0.26794119,103300.0,103290.0,0.13399058]
[1737324779259,0.0004277,103300.0,103290.0,0.28399058]
[1737324779457,0.09494119,103300.0,103290.0,0.28399058]
[1737324779660,0.0004277,103300.0,103290.0,0.28399058]
[1737324779858,0.0004277,103300.0,103290.0,0.57442058]
[1737324780615,0.0004277,103300.0,103290.0,0.79030407]
[1737324780816,0.0004277,103300.0,103290.0,0.66893407]
[1737324781014,0.0004277,103300.0,103290.0,0.57442058]
[1737324781223,0.11794119,103300.0,103290.0,0.57442058]
[1737324781951,0.26794119,103300.0,103290.0,0.42442058]
[1737324782152,0.11794119,103300.0,103290.0,0.42442058]
[1737324782597,0.0234277,103300.0,103290.0,0.42442058]
[1737324782902,0.0234277,103300.0,103290.0,0.83772858]
[1737324783145,0.0004277,103300.0,103290.0,0.93224207]
[1737324783745,0.0004277,103300.0,103290.0,0.96685707]
[1737324783945,0.0004277,103300.0,103290.0,0.57442058]
[1737324784312,0.0004277,103300.0,103290.0,0.42442058]
[1737324784542,0.26794119,103300.0,103290.0,0.42442058]
[1737324785160,0.21794119,103300.0,103290.0,0.29043]
[1737324785393,0.26794119,103300.0,103290.0,0.387244]
[1737324785597,0.11794119,103300.0,103290.0,0.387244]
[1737324785833,0.11794119,103300.0,103290.0,0.658384]
[1737324785834,0.0004277,103300.0,103290.0,0.658384]
[1737324786034,0.0004277,103300.0,103290.0,0.537244]
[1737324786232,0.0004277,103300.0,103290.0,0.6939106]
[1737324786490,0.0004277,103300.0,103290.0,0.78842409]
[1737324786606,0.0004277,103300.0,103290.0,0.6939106]
[1737324786816,0.0004277,103300.0,103290.0,0.5372436]
[1737324787066,0.0004277,103300.0,103290.0,0.91744309]
[1737324787584,0.0004277,103300.0,103290.0,0.83787709]
[1737324787714,0.0004277,103300.0,103290.0,0.5372436]
[1737324788575,0.0004277,103300.0,103290.0,0.6664176]
[1737324788749,0.0148494,103320.0,103310.0,0.096796]
[1737324788972,0.0148494,103320.0,103310.0,0.536886]
[1737324789183,0.0148494,103320.0,103310.0,0.73246549]
[1737324789392,4e-07,103320.0,103310.0,0.83246549]
[1737324789596,4e-07,103320.0,103310.0,0.73139949]
[1737324789758,4e-07,103320.0,103310.0,0.77006549]
[1737324789959,4e-07,103320.0,103310.0,0.7796131]
[1737324790196,4e-07,103320.0,103310.0,0.67006549]
[1737324790433,6e-05,103380.0,103370.0,0.096739]
[1737324790600,6e-05,103380.0,103370.0,0.24723311]
[1737324790799,0.00056048,103380.0,103370.0,0.53745311]
[1737324791417,0.00056048,103380.0,103370.0,0.70866111]
[1737324791595,0.00056048,103380.0,103370.0,0.8031746]
[1737324792032,0.00056048,103380.0,103370.0,0.9031746]
[1737324792410,4.8e-07,103380.0,103370.0,0.9031746]
[1737324792675,4.8e-07,103380.0,103370.0,0.6319666]
[1737324792807,0.1,103440.0,103430.0,0.096683]
[1737324793014,0.40096759,103450.0,103440.0,0.246674]
[1737324793213,0.09466367,103450.0,103430.0,0.29005]
[1737324793414,0.09451349,103440.0,103430.0,0.29005]
[1737324794098,0.09451349,103440.0,103430.0,0.44005]
[1737324794272,0.15015018,103450.0,103440.0,0.15]
[1737324794518,0.09466367,103450.0,103440.0,0.536694]
[1737324794716,0.00015018,103450.0,103440.0,0.536694]
[1737324795229,0.00015018,103450.0,103440.0,0.44002]
[1737324795477,0.00015018,103450.0,103440.0,0.536694]
[1737324795693,0.09466367,103450.0,103440.0,0.536694]
[1737324796029,0.00015018,103450.0,103440.0,0.536694]
[1737324796235,0.00015018,103450.0,103440.0,0.9769546]
[1737324796409,0.00015018,103450.0,103440.0,0.80864149]
[1737324796624,0.00015018,103450.0,103440.0,1.0769546]
[1737324797039,0.00015018,103450.0,103440.0,0.7995206]
[1737324797256,0.00015018,103450.0,103440.0,0.86591249]
[1737324797413,0.05,103470.0,103460.0,0.246655]
[1737324797626,0.05,103470.0,103460.0,1.8394356]
[1737324797786,0.25010765,103510.0,103500.0,0.246618]
[1737324798060,0.44512091,103510.0,103500.0,0.43986]
[1737324798198,0.44512091,103510.0,103500.0,0.28986]
[1737324798199,0.36812091,103510.0,103500.0,0.28986]
[1737324798400,0.46812091,103510.0,103500.0,0.28986]
[1737324798756,0.46812091,103510.0,103500.0,0.43986]
[1737324798959,0.21801326,103510.0,103500.0,0.43986]
[1737324799100,0.16441326,103510.0,103500.0,0.26586]
[1737324799300,0.41102226,103510.0,103500.0,0.26586]
[1737324799547,0.15,103460.0,103440.0,0.096672]
[1737324799857,0.09451349,103450.0,103430.0,0.38673]
[1737324800091,0.09451349,103450.0,103430.0,0.29002]
[1737324800092,0.15,103440.0,103430.0,0.29002]
[1737324800284,0.11751349,103440.0,103430.0,0.29002]
[1737324800488,0.11751349,103440.0,103430.0,0.16317045]
[1737324800489,0.38396558,103440.0,103430.0,0.16317045]
[1737324800689,0.15,103390.0,103380.0,0.290182]
[1737324800809,0.173,103400.0,103390.0,0.095421]
[1737324801014,0.023,103400.0,103390.0,0.095421]
[1737324801642,0.023,103390.0,103380.0,0.29031918]
[1737324801843,0.023,103390.0,103380.0,0.58049918]
[1737324802375,0.023,103390.0,103360.0,0.242681]
[1737324802376,0.15,103370.0,103340.0,0.290298]
[1737324802608,0.24451349,103360.0,103350.0,0.096758]
[1737324802959,0.09451349,103360.0,103350.0,0.096758]
[1737324803173,0.1,103380.0,103350.0,0.15]
[1737324803370,0.15,103380.0,103370.0,0.246739]
[1737324803572,0.00014965,103390.0,103380.0,0.09673]
[1737324803748,0.15014965,103390.0,103380.0,0.09673]
[1737324803933,0.00014965,103390.0,103380.0,0.24673]
[1737324804134,4e-05,103400.0,103390.0,0.246721]
[1737324804390,0.1,103460.0,103440.0,0.246674]
[1737324804591,0.15014987,103440.0,103430.0,0.440028]
[1737324804790,0.09466336,103440.0,103430.0,0.440028]
[1737324805173,0.00014987,103440.0,103430.0,0.440028]
[1737324805372,0.00014987,103440.0,103430.0,0.47452392]
[1737324805632,0.00014987,103440.0,103430.0,0.730078]
[1737324805838,0.09466336,103440.0,103430.0,0.730078]
[1737324806317,0.21766336,103440.0,103430.0,0.730078]
[1737324806550,0.11766336,103440.0,103430.0,0.730078]
[1737324806754,0.09466336,103440.0,103430.0,0.534927]
[1737324806959,0.11766336,103440.0,103430.0,0.29005]
[1737324807175,0.36766336,103440.0,103430.0,0.386733]
[1737324807380,0.21766336,103440.0,103430.0,0.386733]
[1737324807497,0.36766336,103440.0,103430.0,0.386733]
[1737324807698,0.26766336,103440.0,103430.0,0.386733]
[1737324807947,0.26766336,103440.0,103430.0,0.29005]
[1737324807948,0.21766336,103440.0,103430.0,0.29005]
[1737324808148,0.21433736,103440.0,103430.0,0.29005]
[1737324808298,0.1,103420.0,103390.0,0.193427]
[1737324808499,0.15,103380.0,103370.0,0.320272]
[1737324808703,0.15,103370.0,103360.0,0.193483]
[1737324808908,0.15,103380.0,103350.0,0.193508]
[1737324809115,0.123,103400.0,103340.0,0.096763]
[1737324809116,0.24451349,103370.0,103340.0,0.096763]
[1737324809355,0.15,103360.0,103350.0,0.096758]
[1737324809645,0.11751349,103360.0,103350.0,0.096758]
[1737324809875,0.11751349,103360.0,103350.0,0.09725848]
[1737324810115,0.15,103370.0,103360.0,0.246749]
[1737324810356,0.24451349,103370.0,103360.0,0.246749]
[1737324810572,0.15,103360.0,103350.0,0.00050048]
[1737324810776,0.11751349,103360.0,103350.0,0.00050048]
[1737324810982,0.26751349,103360.0,103350.0,0.00050048]
[1737324811402,0.11751349,103360.0,103350.0,0.09725848]
[1737324811805,0.11751349,103360.0,103350.0,0.00050048]
[1737324812044,0.09451349,103360.0,103350.0,0.09725848]
[1737324812277,0.09451349,103360.0,103350.0,0.24725848]
[1737324812408,0.24451349,103360.0,103350.0,0.24725848]
[1737324812606,0.15,103370.0,103360.0,0.096749]
[1737324812836,0.09451349,103370.0,103360.0,0.096749]
[1737324813443,0.57145511,103420.0,103400.0,0.246711]
[1737324813444,0.28137111,103420.0,103400.0,0.246711]
[1737324813613,0.24451349,103410.0,103400.0,0.440119]
[1737324813834,0.24451349,103410.0,103400.0,0.290119]
[1737324813835,0.21751349,103410.0,103400.0,0.290119]
[1737324814403,0.19451349,103410.0,103400.0,0.290119]
[1737324814601,0.123,103400.0,103390.0,0.287154]
[1737324814800,0.15,103370.0,103360.0,0.0755]
[1737324815039,0.15,103390.0,103370.0,0.38708265]
[1737324815243,0.15,103400.0,103390.0,0.096721]
[1737324815618,0.24451349,103400.0,103390.0,0.096721]
[1737324816349,0.21751349,103400.0,103390.0,0.096721]
[1737324816549,0.123,103390.0,103380.0,0.440169]
[1737324816895,0.123,103380.0,103370.0,0.09688865]
[1737324817067,0.15,103390.0,103380.0,0.09673]
[1737324817270,0.50507732,103390.0,103380.0,0.24673]
[1737324817493,0.56056383,103390.0,103380.0,0.24673]
[1737324817693,0.41056383,103390.0,103380.0,0.24673]
[1737324817898,0.2841158,103420.0,103410.0,0.096702]
[1737324818102,0.47862929,103420.0,103410.0,0.096702]
[1737324818312,0.15,103430.0,103410.0,0.2255]
[1737324818538,0.15,103440.0,103430.0,0.096683]
[1737324818740,0.1,103450.0,103430.0,0.15]
[1737324818741,0.15,103450.0,103430.0,0.15]
[1737324819063,0.24451349,103450.0,103440.0,0.246674]
[1737324819200,0.50943977,103450.0,103440.0,0.246674]
[1737324819560,0.41492628,103450.0,103430.0,0.580082]
[1737324819764,0.41492628,103450.0,103430.0,0.290027]
[1737324819765,0.09451349,103440.0,103430.0,0.290027]
[1737324819933,0.19451349,103440.0,103430.0,0.290027]
[1737324820138,0.24451349,103440.0,103430.0,0.290027]
[1737324820546,0.28466989,103450.0,103430.0,0.698042]
[1737324820751,0.28466989,103450.0,103440.0,0.1452342]
[1737324820952,0.28466989,103450.0,103440.0,0.3808982]
[1737324820953,0.0001499,103450.0,103440.0,0.3808982]
[1737324821362,0.0001499,103450.0,103440.0,0.4563982]
[1737324821562,0.0001499,103450.0,103440.0,0.70091169]
[1737324821960,0.28509648,103470.0,103460.0,0.096655]
[1737324822157,0.11912248,103470.0,103460.0,1.3723176]
[1737324822339,0.71514489,103500.0,103490.0,0.246627]
[1737324822554,0.71564457,103500.0,103490.0,0.246627]
[1737324823381,0.30049968,103500.0,103490.0,0.246627]
[1737324823581,0.30049968,103500.0,103490.0,0.347332]
[1737324824139,0.54501317,103500.0,103490.0,0.246627]
[1737324824554,4e-05,103510.0,103500.0,0.096618]
[1737324824758,0.04896315,103540.0,103530.0,0.09659]
[1737324824934,0.29347664,103540.0,103530.0,0.09659]
[1737324825167,0.09466335,103540.0,103530.0,0.09659]
[1737324825384,0.19466335,103540.0,103530.0,0.09659]
[1737324825590,0.15,103530.0,103520.0,0.343199]
[1737324825767,0.09466335,103540.0,103530.0,0.09659]
[1737324825983,0.15014986,103540.0,103530.0,0.09659]
[1737324826188,0.09466335,103540.0,103530.0,0.09659]
[1737324826394,0.24466335,103540.0,103530.0,0.09659]
[1737324826596,0.09466335,103540.0,103530.0,0.09659]
[1737324826798,0.00014986,103540.0,103530.0,0.09659]
[1737324827347,0.00014986,103540.0,103530.0,0.380977]
[1737324828002,0.00014986,103540.0,103530.0,0.362819]
[1737324828239,8.6e-07,103540.0,103530.0,0.45733249]
[1737324828435,8.6e-07,103540.0,103530.0,0.34110349]
[1737324828639,9e-07,103550.0,103540.0,1.535579]
[1737324828780,0.10084001,103570.0,103560.0,0.273]
[1737324828993,0.41514489,103600.0,103580.0,0.3042]
[1737324829191,0.41529464,103600.0,103590.0,0.5093606]
[1737324829435,0.41529464,103600.0,103590.0,0.8816356]
[1737324829649,0.41529464,103600.0,103590.0,0.6098246]
[1737324829907,0.00014975,103600.0,103590.0,0.72313155]
[1737324830052,0.00014975,103600.0,103590.0,0.62963455]
[1737324830264,0.00014975,103600.0,103590.0,0.41437106]
[1737324830652,0.15014975,103600.0,103590.0,0.24605795]
[1737324831238,0.00014975,103600.0,103590.0,0.24605795]
[1737324831445,0.00014975,103600.0,103590.0,0.41437106]
[1737324831656,0.15014975,103600.0,103590.0,0.41437106]
[1737324831853,0.09466324,103600.0,103590.0,0.24605795]
[1737324832482,0.09466324,103600.0,103560.0,0.00954761]
[1737324832483,0.173,103590.0,103560.0,0.00954761]
[1737324832657,0.09451349,103580.0,103570.0,0.096551]
[1737324832836,0.24451349,103580.0,103570.0,0.289652]
[1737324833031,0.15,103590.0,103580.0,0.096543]
[1737324833324,0.09451349,103590.0,103580.0,0.246543]
[1737324833541,0.15014975,103600.0,103580.0,0.15]
[1737324833707,0.00014975,103600.0,103590.0,0.096534]
[1737324833952,0.09466324,103600.0,103590.0,0.096534]
[1737324834100,0.09466324,103600.0,103590.0,0.09533637]
[1737324836050,0.00014975,103600.0,103590.0,0.09533637]
[1737324836437,0.15014975,103600.0,103590.0,0.09533637]
[1737324836835,0.00014975,103600.0,103590.0,0.09533637]
[1737324837395,0.00057525,103600.0,103590.0,0.41364948]
[1737324838568,0.00057525,103600.0,103590.0,0.69604797]
[1737324838828,0.00057525,103600.0,103590.0,0.70368953]
[1737324839083,2.5e-07,103600.0,103590.0,0.66384653]
[1737324839261,0.92321435,103610.0,103600.0,0.641329]
[1737324839432,0.92321435,103610.0,103600.0,1.1080631]
[1737324839433,0.55469593,103610.0,103600.0,1.1080631]
[1737324839806,0.42020774,103610.0,103600.0,1.23073297]
[1737324840150,0.32369274,103610.0,103600.0,0.61609836]
[1737324840356,0.32369274,103610.0,103600.0,1.05484997]
[1737324840563,0.32369274,103610.0,103600.0,0.85801936]
[1737324840761,0.32369274,103610.0,103600.0,0.52725436]
[1737324840952,0.30438974,103610.0,103600.0,0.96058797]
[1737324841160,0.24648074,103610.0,103600.0,0.76375736]
[1737324841382,0.22717774,103610.0,103600.0,0.99287664]
[1737324841582,0.22405773,103610.0,103600.0,0.79604603]
[1737324841838,0.19405773,103610.0,103600.0,0.79604603]
[1737324842179,0.09131916,103610.0,103600.0,0.99287664]
[1737324842379,6e-05,103660.0,103650.0,0.096478]
[1737324842585,0.00014963,103660.0,103650.0,0.38393249]
[1737324843093,0.00014963,103660.0,103650.0,0.57197249]
[1737324843325,0.00014963,103660.0,103650.0,0.53393249]
[1737324843871,0.15014963,103660.0,103650.0,0.439419]
[1737324844374,0.15014963,103660.0,103650.0,0.58707887]
[1737324844718,0.00014963,103660.0,103650.0,0.58707887]
[1737324845158,0.00014963,103660.0,103650.0,0.96640797]
[1737324845484,0.00014963,103660.0,103650.0,0.69113997]
[1737324845633,0.00014963,103660.0,103650.0,0.68159236]
[1737324846189,0.15014963,103660.0,103650.0,0.439419]
[1737324846388,0.15014963,103660.0,103650.0,0.58707887]
[1737324846539,0.15014963,103660.0,103650.0,0.439419]
[1737324846740,0.24466312,103660.0,103650.0,0.439419]
[1737324847160,0.19466312,103660.0,103640.0,0.1229878]
[1737324847324,0.09451349,103650.0,103640.0,0.3159668]
[1737324847916,0.11751349,103650.0,103640.0,0.0265068]
[1737324848120,0.21751349,103650.0,103640.0,0.0265068]
[1737324848337,0.09451349,103650.0,103640.0,0.1229938]
[1737324848735,0.27444963,103660.0,103650.0,0.246478]
[1737324848941,0.00014963,103660.0,103650.0,0.39413787]
[1737324849179,0.00014963,103660.0,103650.0,0.79576087]
[1737324849380,0.00014963,103660.0,103650.0,0.57179987]
[1737324849590,0.00057463,103660.0,103650.0,0.57179987]
[1737324850201,0.00057463,103660.0,103650.0,0.56929987]
[1737324850364,0.00057463,103660.0,103650.0,0.424251]
[1737324850698,0.24508812,103660.0,103650.0,0.25352561]
[1737324850917,0.09508812,103660.0,103650.0,0.369478]
[1737324851123,0.1504261,103710.0,103700.0,0.096432]
[1737324851124,0.0004261,103710.0,103700.0,0.096432]
[1737324851336,0.09508916,103710.0,103700.0,0.096432]
[1737324851486,0.00057567,103710.0,103700.0,0.506833]
[1737324851675,0.00057567,103710.0,103700.0,0.606833]
[1737324851874,0.00057567,103710.0,103700.0,0.440913]
[1737324852081,0.00057567,103710.0,103700.0,0.40914]
[1737324852282,0.00057567,103710.0,103700.0,0.482713]
[1737324852686,0.0183315,103790.0,103740.0,0.1]
[1737324852991,0.11334368,103790.0,103770.0,0.342733]
[1737324853237,0.11334368,103790.0,103780.0,0.096357]
[1737324853900,0.11334368,103790.0,103770.0,0.439079]
[1737324854096,0.09451349,103780.0,103760.0,0.096374]
[1737324854318,0.226,103760.0,103730.0,0.00954761]
[1737324854676,0.24451349,103740.0,103700.0,0.00954761]
[1737324854885,0.11751349,103730.0,103720.0,0.096413]
[1737324855441,0.076,103760.0,103740.0,0.385561]
[1737324855644,0.09451349,103750.0,103740.0,0.439168]
[1737324855884,0.08117323,103760.0,103750.0,0.096385]
[1737324856026,0.08167192,103760.0,103750.0,0.096385]
[1737324856232,0.08167192,103760.0,103750.0,0.246385]
[1737324856438,0.17618541,103760.0,103750.0,0.246385]
[1737324857054,0.19918541,103760.0,103750.0,0.246385]
[1737324857293,0.023,103750.0,103710.0,0.00954761]
[1737324857433,0.11751349,103740.0,103730.0,0.096404]
[1737324857791,0.0683,103730.0,103710.0,0.096417]
[1737324857938,0.11751349,103720.0,103710.0,0.096416]
[1737324858139,0.11751349,103720.0,103710.0,0.796416]
[1737324858676,0.09977489,103720.0,103710.0,0.796416]
[1737324858877,0.17877489,103720.0,103710.0,0.796422]
[1737324859420,0.17927327,103720.0,103710.0,0.796422]
[1737324859624,0.20227327,103720.0,103710.0,0.246422]
[1737324860228,0.20227327,103720.0,103710.0,0.15]
[1737324860387,0.023,103710.0,103690.0,0.19288]
[1737324860601,0.32927327,103720.0,103690.0,0.19288]
[1737324860602,0.11751349,103700.0,103690.0,0.289317]
[1737324860824,0.11751349,103700.0,103690.0,0.439317]
[1737324860825,0.12277489,103700.0,103690.0,0.439317]
[1737324861199,0.09977489,103700.0,103670.0,0.192909]
[1737324861403,0.09977489,103700.0,103690.0,0.096441]
[1737324861650,0.0052614,103700.0,103690.0,0.523519]
[1737324861786,0.0052614,103700.0,103690.0,0.68958098]
[1737324861989,4e-07,103700.0,103690.0,0.78498592]
[1737324862368,4e-07,103700.0,103690.0,0.86745553]
[1737324862488,3.8e-07,103720.0,103710.0,0.496422]
[1737324862683,3.8e-07,103720.0,103710.0,0.6004831]
[1737324863045,3.8e-07,103720.0,103710.0,0.346422]
[1737324863245,3.8e-07,103720.0,103710.0,0.246422]
[1737324863629,0.09451387,103720.0,103710.0,0.096422]
[1737324863842,0.11751387,103720.0,103710.0,0.093922]
[1737324864249,3.8e-07,103720.0,103710.0,0.193922]
[1737324864428,3.8e-07,103720.0,103710.0,0.343922]
[1737324865025,3.8e-07,103720.0,103710.0,0.243922]
[1737324865205,3.8e-07,103720.0,103710.0,0.20500692]
[1737324865444,3.8e-07,103720.0,103710.0,0.30142892]
[1737324865845,0.11751387,103720.0,103700.0,0.292848]
[1737324865988,0.09451349,103710.0,103700.0,0.09643]